fUST/lending_fUST_20250225
["ID","MTS","AMOUNT","RATE_DAILY","PERIOD"]
[354343071,1740435058721,-386.632629,0.0001452,2]
[354343072,1740435058731,-386.632629,0.0001452,2]
[354343073,1740435058740,-500.0,0.0001452,2]
[354343074,1740435058749,-500.0,0.0001452,2]
[354343075,1740435058759,-307.141916,0.0001452,2]
[354343076,1740435058768,-500.0,0.0001452,2]
[354343077,1740435058778,-307.141916,0.0001452,2]
[354343078,1740435058787,-151.0,0.0001452,2]
[354343079,1740435058796,-280.486588,0.0001452,2]
[354343080,1740435058805,-2145.306791,0.0001452,2]
[354343081,1740435058818,-2145.306793,0.0001452,2]
[354343082,1740435058827,-756.962769,0.0001452,2]
[354343083,1740435058836,-756.962769,0.0001452,2]
[354343084,1740435058846,-500.0,0.0001452,2]
[354343085,1740435058863,-760.82,0.0001452,2]
[354343086,1740435058873,-829.91,0.0001452,2]
[354343087,1740435058883,-2969.05,0.0001452,2]
[354343088,1740435058892,-500.0,0.0001452,2]
[354343089,1740435058902,-1214.05,0.0001452,2]
[354343090,1740435058912,-500.0,0.0001452,2]
[354343091,1740435058922,-500.0,0.0001452,2]
[354343092,1740435058932,-545.71,0.0001452,2]
[354343093,1740435058941,-666.01,0.0001452,2]
[354343094,1740435058951,-2633.2,0.0001452,2]
[354343095,1740435058961,-1856.81,0.0001452,2]
[354343096,1740435058971,-500.0,0.0001452,2]
[354343097,1740435058980,-500.0,0.0001452,2]
[354343098,1740435058990,-4267.3,0.0001452,2]
[354343099,1740435059000,-674.84,0.0001452,2]
[354343100,1740435059009,-500.0,0.0001452,2]
[354343101,1740435059018,-522.83,0.0001452,2]
[354343102,1740435059027,-598.94,0.0001452,2]
[354343103,1740435059037,-719.66,0.0001452,2]
[354343104,1740435059046,-500.0,0.0001452,2]
[354343105,1740435059055,-625.36,0.0001452,2]
[354343106,1740435059064,-2857.36,0.0001452,2]
[354343107,1740435059074,-1000.0,0.00014521,2]
[354343108,1740435059083,-1000.0,0.00014521,2]
[354343109,1740435059093,-1200.0,0.00014582,2]
[354343110,1740435059102,-450.0,0.00014602,2]
[354343111,1740435059115,-450.0,0.00014602,2]
[354343112,1740435059189,-176.344604,0.00014602,2]
[354343113,1740435059204,-176.344604,0.00014602,2]
[354343114,1740435059214,-500.0,0.00014602,2]
[354343115,1740435059224,-500.0,0.00014602,2]
[354343116,1740435059233,-500.0,0.00014602,2]
[354343117,1740435059242,-500.0,0.00014602,2]
[354343118,1740435059252,-760.82,0.00014602,2]
[354343119,1740435059261,-829.91,0.00014602,2]
[354343120,1740435059270,-2969.05,0.00014602,2]
[354343121,1740435059280,-500.0,0.00014602,2]
[354343122,1740435059290,-1214.05,0.00014602,2]
[354343123,1740435059300,-500.0,0.00014602,2]
[354343124,1740435059310,-516.56,0.00014602,2]
[354343125,1740435059319,-666.01,0.00014602,2]
[354343126,1740435059328,-2633.2,0.00014602,2]
[354343127,1740435059338,-1856.81,0.00014602,2]
[354343128,1740435059348,-500.0,0.00014602,2]
[354343129,1740435059359,-500.0,0.00014602,2]
[354343130,1740435059369,-4267.3,0.00014602,2]
[354343131,1740435059379,-674.84,0.00014602,2]
[354343132,1740435059389,-500.0,0.00014602,2]
[354343133,1740435059399,-522.83,0.00014602,2]
[354343134,1740435059408,-598.94,0.00014602,2]
[354343135,1740435059418,-719.66,0.00014602,2]
[354343136,1740435059427,-500.0,0.00014602,2]
[354343137,1740435059436,-625.36,0.00014602,2]
[354343138,1740435059446,-2857.36,0.00014602,2]
[354343139,1740435059456,-239.08139775,0.00014603,2]
[354343140,1740435059465,-500.0,0.00014603,2]
[354343141,1740435059475,-500.0,0.00014603,2]
[354343142,1740435059484,-180.03827923,0.00014603,2]
[354343143,1740435059494,-150.29,0.00014603,2]
[354343144,1740435059504,-150.29,0.00014603,2]
[354343145,1740435059513,-150.4279185,0.00014603,2]
[354343146,1740435059531,-500.0,0.00014603,2]
[354343147,1740435059540,-500.0,0.00014603,2]
[354343148,1740435059550,-150.29,0.00014603,2]
[354343149,1740435059559,-500.0,0.00014603,2]
[354343150,1740435059568,-500.0,0.00014603,2]
[354343151,1740435059578,-150.29,0.00014603,2]
[354343152,1740435059588,-150.7902527,0.00014603,2]
[354343153,1740435059598,-569.0,0.00014603,2]
[354343154,1740435059610,-500.0,0.00014603,2]
[354343155,1740435059620,-150.29,0.00014603,2]
[354343156,1740435059629,-362.79983214,0.00014608,2]
[354343157,1740435059639,-431.914,0.00014658,2]
[354343158,1740435059649,-266.506003,0.00014684,2]
[354343159,1740435059659,-266.506003,0.00014684,2]
[354343160,1740435059669,-386.632629,0.00014684,2]
[354343161,1740435059678,-386.632629,0.00014684,2]
[354343162,1740435059688,-500.0,0.00014684,2]
[354343163,1740435059697,-500.0,0.00014684,2]
[354343164,1740435059706,-500.0,0.00014684,2]
[354343165,1740435059715,-756.962769,0.00014684,2]
[354343166,1740435059724,-756.962769,0.00014684,2]
[354343167,1740435059733,-500.0,0.00014684,2]
[354343168,1740435059744,-829.91,0.00014684,2]
[354343169,1740435059753,-760.82,0.00014684,2]
[354343170,1740435059763,-2969.05,0.00014684,2]
[354343171,1740435059773,-500.0,0.00014684,2]
[354343172,1740435059783,-1214.05,0.00014684,2]
[354343173,1740435059792,-309.06,0.00014684,2]
[354343174,1740435059801,-666.01,0.00014684,2]
[354343175,1740435059813,-2633.2,0.00014684,2]
[354343176,1740435059823,-1856.81,0.00014684,2]
[354343177,1740435059832,-500.0,0.00014684,2]
[354343178,1740435059842,-500.0,0.00014684,2]
[354343179,1740435059854,-4267.3,0.00014684,2]
[354343180,1740435059866,-674.84,0.00014684,2]
[354343181,1740435059875,-500.0,0.00014684,2]
[354343182,1740435059885,-522.83,0.00014684,2]
[354343183,1740435059896,-598.94,0.00014684,2]
[354343184,1740435059905,-719.66,0.00014684,2]
[354343185,1740435059915,-500.0,0.00014684,2]
[354343186,1740435059924,-625.36,0.00014684,2]
[354343187,1740435059935,-2857.36,0.00014684,2]
[354343188,1740435059944,-248.372028,0.00014766,2]
[354343189,1740435059954,-248.372028,0.00014766,2]
[354343190,1740435059963,-282.7128,0.00014766,2]
[354343191,1740435059973,-282.7128,0.00014766,2]
[354343192,1740435059982,-151.0,0.00014766,2]
[354343193,1740435059992,-307.141916,0.00014766,2]
[354343194,1740435060002,-307.141923,0.00014766,2]
[354343195,1740435060011,-151.0,0.00014766,2]
[354343196,1740435060021,-251.496237,0.00014767,2]
[354343197,1740435060031,-176.344604,0.00014767,2]
[354343198,1740435060042,-251.496237,0.00014767,2]
[354343199,1740435060053,-176.344604,0.00014767,2]
[354343200,1740435060063,-500.0,0.00014767,2]
[354343201,1740435060073,-500.0,0.00014767,2]
[354343202,1740435060085,-280.87358176,0.00014767,2]
[354343203,1740435060095,-573.59542563,0.00014767,2]
[354343204,1740435060105,-829.91,0.00014767,2]
[354343205,1740435060118,-760.82,0.00014767,2]
[354343206,1740435060128,-2969.05,0.00014767,2]
[354343207,1740435060138,-500.0,0.00014767,2]
[354343208,1740435060149,-1214.05,0.00014767,2]
[354343209,1740435060159,-666.01,0.00014767,2]
[354343210,1740435060169,-2633.2,0.00014767,2]
[354343211,1740435060179,-1856.81,0.00014767,2]
[354343212,1740435060190,-500.0,0.00014767,2]
[354343213,1740435060199,-4267.3,0.00014767,2]
[354343214,1740435060209,-674.84,0.00014767,2]
[354343215,1740435060219,-366.22589886,0.00014767,2]
[354343216,1740435060228,-522.83,0.00014767,2]
[354343217,1740435060237,-598.94,0.00014767,2]
[354343218,1740435060248,-719.66,0.00014767,2]
[354343219,1740435060258,-528.56,0.00014767,2]
[354343220,1740435060268,-625.36,0.00014767,2]
[354343221,1740435060278,-2857.36,0.00014767,2]
[354343222,1740435060289,-5000.0,0.000148,5]
[354343223,1740435060299,-2151.9380528,0.000148,2]
[354343224,1740435060310,-151.0,0.00014849,2]
[354343225,1740435060320,-450.0,0.00014849,2]
[354343226,1740435060330,-450.0,0.00014849,2]
[354343227,1740435060340,-266.506003,0.00014849,2]
[354343228,1740435060351,-266.505997,0.00014849,2]
[354343229,1740435060370,-386.632629,0.00014849,2]
[354343230,1740435060385,-386.632623,0.00014849,2]
[354343231,1740435060396,-500.0,0.00014849,2]
[354343232,1740435060406,-211.89,0.00014849,2]
[354343233,1740435060417,-756.962769,0.00014849,2]
[354343234,1740435060427,-756.96277318,0.00014849,2]
[354343235,1740435060437,-829.91,0.00014849,2]
[354343236,1740435060447,-760.82,0.00014849,2]
[354343237,1740435060457,-2969.05,0.00014849,2]
[354343238,1740435060467,-555.49915987,0.00014849,2]
[354343239,1740435060476,-1214.05,0.00014849,2]
[354343240,1740435060486,-666.01,0.00014849,2]
[354343241,1740435060496,-2633.2,0.00014849,2]
[354343242,1740435060506,-1856.81,0.00014849,2]
[354343243,1740435060516,-500.0,0.00014849,2]
[354343244,1740435060526,-4267.3,0.00014849,2]
[354343245,1740435060536,-674.84,0.00014849,2]
[354343246,1740435060545,-522.83,0.00014849,2]
[354343247,1740435060555,-598.94,0.00014849,2]
[354343248,1740435060566,-719.66,0.00014849,2]
[354343249,1740435060576,-625.36,0.00014849,2]
[354343250,1740435060586,-2857.36,0.00014849,2]
[354343251,1740435060596,-150.0,0.00014873,2]
[354343252,1740435060607,-500.0,0.00014877,2]
[354343253,1740435060620,-500.0,0.00014877,2]
[354343254,1740435060630,-150.29,0.00014877,2]
[354343255,1740435060640,-150.29,0.00014877,2]
[354343256,1740435060650,-500.0,0.00014877,2]
[354343257,1740435060660,-500.0,0.00014877,2]
[354343258,1740435060670,-150.29,0.00014877,2]
[354343259,1740435060681,-500.0,0.00014877,2]
[354343260,1740435060690,-843.6076535,0.00014877,2]
[354343261,1740435060700,-569.0,0.00014877,2]
[354343262,1740435060781,-500.0,0.00014877,2]
[354343263,1740435060791,-151.0,0.000149,2]
[354343264,1740435060801,-450.0,0.000149,2]
[354343265,1740435060811,-450.0,0.000149,2]
[354343266,1740435060821,-251.496237,0.000149,2]
[354343267,1740435060830,-176.344604,0.000149,2]
[354343268,1740435060839,-251.496237,0.000149,2]
[354343269,1740435060848,-176.344604,0.000149,2]
[354343270,1740435060866,-248.372028,0.000149,2]
[354343271,1740435060875,-248.372033,0.000149,2]
[354343272,1740435060885,-282.7128,0.000149,2]
[354343273,1740435060895,-282.7128,0.000149,2]
[354343274,1740435060905,-151.0,0.000149,2]
[354343275,1740435060915,-288036.77435,0.000149,2]
[354343276,1740435060925,-420.0,0.00014907,2]
[354343277,1740435060934,-500.0,0.00014931,2]
[354343278,1740435060944,-829.91,0.00014931,2]
[354343279,1740435060954,-760.82,0.00014931,2]
[354343280,1740435060964,-2969.05,0.00014931,2]
[354343281,1740435060973,-1214.05,0.00014931,2]
[354343282,1740435060983,-666.01,0.00014931,2]
[354343283,1740435060993,-2633.2,0.00014931,2]
[354343284,1740435061002,-1856.81,0.00014931,2]
[354343285,1740435061012,-500.0,0.00014931,2]
[354343286,1740435061022,-4267.3,0.00014931,2]
[354343287,1740435061032,-674.84,0.00014931,2]
[354343288,1740435061042,-522.83,0.00014931,2]
[354343289,1740435061052,-598.94,0.00014931,2]
[354343290,1740435061062,-719.66,0.00014931,2]
[354343291,1740435061072,-625.36,0.00014931,2]
[354343292,1740435061082,-2857.36,0.00014931,2]
[354343293,1740435061092,-396.0,0.00014977,2]
[354343294,1740435061102,-1200.000001,0.00014978,2]
[354343295,1740435061113,-4551.4085038,0.00015,2]
[354343296,1740435061122,-846.29710949,0.00015,2]
[354343297,1740435061132,-1000.0,0.00015,2]
[354343298,1740435061141,-829.91,0.00015013,2]
[354343299,1740435061151,-760.82,0.00015013,2]
[354343300,1740435061160,-2969.05,0.00015013,2]
[354343301,1740435061170,-1214.05,0.00015013,2]
[354343302,1740435061179,-666.01,0.00015013,2]
[354343303,1740435061189,-2633.2,0.00015013,2]
[354343304,1740435061198,-1856.81,0.00015013,2]
[354343305,1740435061208,-500.0,0.00015013,2]
[354343306,1740435061218,-4267.3,0.00015013,2]
[354343307,1740435061227,-674.84,0.00015013,2]
[354343308,1740435061237,-522.83,0.00015013,2]
[354343309,1740435061247,-598.94,0.00015013,2]
[354343310,1740435061256,-719.66,0.00015013,2]
[354343311,1740435061266,-625.36,0.00015013,2]
[354343312,1740435061275,-2857.36,0.00015013,2]
[354343313,1740435061285,-5000.0,0.00015083,2]
[354343314,1740435061295,-5000.0,0.00015083,2]
[354343315,1740435061305,-8474.05130637,0.00015086,2]
[354343316,1740435061315,-5000.0,0.00015086,2]
[354343317,1740435061325,-151.0,0.00015087,2]
[354343318,1740435061335,-450.0,0.00015087,2]
[354343319,1740435061345,-450.0,0.00015087,2]
[354343320,1740435061355,-251.496237,0.00015087,2]
[354343321,1740435061369,-251.496237,0.00015087,2]
[354343322,1740435061379,-176.344604,0.00015087,2]
[354343323,1740435061390,-176.344602,0.00015087,2]
[354343324,1740435061400,-829.91,0.00015095,2]
[354343325,1740435061410,-760.82,0.00015095,2]
[354343326,1740435061419,-2969.05,0.00015095,2]
[354343327,1740435061429,-1214.05,0.00015095,2]
[354343328,1740435061438,-666.01,0.00015095,2]
[354343329,1740435061448,-2633.2,0.00015095,2]
[354343330,1740435061458,-1856.81,0.00015095,2]
[354343331,1740435061467,-565.45,0.00015095,2]
[354343332,1740435061477,-4267.3,0.00015095,2]
[354343333,1740435061487,-674.84,0.00015095,2]
[354343334,1740435061497,-522.83,0.00015095,2]
[354343335,1740435061507,-598.94,0.00015095,2]
[354343336,1740435061517,-719.66,0.00015095,2]
[354343337,1740435061527,-625.36,0.00015095,2]
[354343338,1740435061537,-2857.36,0.00015095,2]
[354343339,1740435061547,-561.65755464,0.00015142,2]
[354343340,1740435061558,-500.0,0.00015151,2]
[354343341,1740435061568,-801.05309389,0.00015151,2]
[354343342,1740435061578,-150.29,0.00015151,2]
[354343343,1740435061588,-152.38089421,0.00015151,2]
[354343344,1740435061598,-500.0,0.00015151,2]
[354343345,1740435061608,-500.0,0.00015151,2]
[354343346,1740435061619,-150.29,0.00015151,2]
[354343347,1740435061629,-500.0,0.00015151,2]
[354343348,1740435061638,-569.0,0.00015151,2]
[354343349,1740435061648,-500.0,0.00015151,2]
[354343350,1740435061657,-829.91,0.00015178,2]
[354343351,1740435061667,-760.82,0.00015178,2]
[354343352,1740435061677,-2969.05,0.00015178,2]
[354343353,1740435061686,-1214.05,0.00015178,2]
[354343354,1740435061696,-666.01,0.00015178,2]
[354343355,1740435061706,-2633.2,0.00015178,2]
[354343356,1740435061716,-1856.81,0.00015178,2]
[354343357,1740435061726,-4267.3,0.00015178,2]
[354343358,1740435061736,-674.84,0.00015178,2]
[354343359,1740435061746,-522.83,0.00015178,2]
[354343360,1740435061756,-598.94,0.00015178,2]
[354343361,1740435061766,-719.66,0.00015178,2]
[354343362,1740435061776,-625.36,0.00015178,2]
[354343363,1740435061786,-2857.36,0.00015178,2]
[354343364,1740435061796,-1366.82472107,0.00015222,2]
[354343365,1740435061807,-150.102,0.0001523,2]
[354343366,1740435061824,-150.0,0.0001523,2]
[354343367,1740435061834,-150.0,0.0001523,2]
[354343368,1740435061844,-538.0,0.0001523,2]
[354343369,1740435061855,-1970.0,0.0001523,2]
[354343370,1740435061871,-2285.0,0.0001523,2]
[354343371,1740435061881,-561.65755464,0.00015242,2]
[354343372,1740435061891,-251.496237,0.0001526,2]
[354343373,1740435061902,-251.496242,0.0001526,2]
[354343374,1740435061912,-829.91,0.0001526,2]
[354343375,1740435061922,-760.82,0.0001526,2]
[354343376,1740435061934,-2969.05,0.0001526,2]
[354343377,1740435061943,-1214.05,0.0001526,2]
[354343378,1740435061953,-666.01,0.0001526,2]
[354343379,1740435061963,-2633.2,0.0001526,2]
[354343380,1740435061973,-1856.81,0.0001526,2]
[354343381,1740435061983,-4267.3,0.0001526,2]
[354343382,1740435061993,-674.84,0.0001526,2]
[354343383,1740435062002,-522.83,0.0001526,2]
[354343384,1740435062011,-598.94,0.0001526,2]
[354343385,1740435062022,-719.66,0.0001526,2]
[354343386,1740435062032,-625.36,0.0001526,2]
[354343387,1740435062041,-2857.36,0.0001526,2]
[354343388,1740435062051,-829.91,0.00015342,2]
[354343389,1740435062062,-760.82,0.00015342,2]
[354343390,1740435062072,-2969.05,0.00015342,2]
[354343391,1740435062081,-1214.05,0.00015342,2]
[354343392,1740435062091,-666.01,0.00015342,2]
[354343393,1740435062101,-2633.2,0.00015342,2]
[354343394,1740435062114,-1856.81,0.00015342,2]
[354343395,1740435062124,-4267.3,0.00015342,2]
[354343396,1740435062135,-674.84,0.00015342,2]
[354343397,1740435062145,-522.83,0.00015342,2]
[354343398,1740435062155,-598.94,0.00015342,2]
[354343399,1740435062165,-719.66,0.00015342,2]
[354343400,1740435062240,-625.36,0.00015342,2]
[354343401,1740435062250,-2857.36,0.00015342,2]
[354343402,1740435062259,-561.65755464,0.00015342,2]
[354343403,1740435062268,-660.64,0.000154,2]
[354343404,1740435062278,-250.0,0.00015421,2]
[354343405,1740435062287,-1500.0,0.00015422,2]
[354343406,1740435062297,-1500.0,0.00015422,2]
[354343407,1740435062307,-829.91,0.00015424,2]
[354343408,1740435062317,-760.82,0.00015424,2]
[354343409,1740435062326,-2969.05,0.00015424,2]
[354343410,1740435062336,-1214.05,0.00015424,2]
[354343411,1740435062346,-666.01,0.00015424,2]
[354343412,1740435062356,-2633.2,0.00015424,2]
[354343413,1740435062367,-1856.81,0.00015424,2]
[354343414,1740435062378,-4267.3,0.00015424,2]
[354343415,1740435062388,-674.84,0.00015424,2]
[354343416,1740435062398,-522.83,0.00015424,2]
[354343417,1740435062408,-598.94,0.00015424,2]
[354343418,1740435062419,-719.66,0.00015424,2]
[354343419,1740435062429,-625.36,0.00015424,2]
[354343420,1740435062439,-2857.36,0.00015424,2]
[354343421,1740435062450,-500.0,0.00015425,2]
[354343422,1740435062461,-150.29,0.00015425,2]
[354343423,1740435062471,-500.0,0.00015425,2]
[354343424,1740435062481,-895.39708224,0.00015425,2]
[354343425,1740435062492,-150.29,0.00015425,2]
[354343426,1740435062502,-500.0,0.00015425,2]
[354343427,1740435062514,-569.0,0.00015425,2]
[354343428,1740435062523,-500.0,0.00015425,2]
[354343429,1740435062534,-561.65755464,0.00015442,2]
[354343430,1740435062543,-23649.52988077,0.000155,2]
[354343431,1740435062554,-368.949369,0.000155,5]
[354343432,1740435062564,-829.91,0.00015506,2]
[354343433,1740435062575,-760.82,0.00015506,2]
[354343434,1740435062584,-2969.05,0.00015506,2]
[354343435,1740435062595,-1214.05,0.00015506,2]
[354343436,1740435062604,-666.01,0.00015506,2]
[354343437,1740435062617,-2633.2,0.00015506,2]
[354343438,1740435062627,-1856.81,0.00015506,2]
[354343439,1740435062637,-4267.3,0.00015506,2]
[354343440,1740435062647,-674.84,0.00015506,2]
[354343441,1740435062657,-522.83,0.00015506,2]
[354343442,1740435062667,-598.94,0.00015506,2]
[354343443,1740435062677,-719.66,0.00015506,2]
[354343444,1740435062687,-625.36,0.00015506,2]
[354343445,1740435062697,-2857.36,0.00015506,2]
[354343446,1740435062706,-1500.0,0.00015522,2]
[354343447,1740435062716,-1500.0,0.00015522,2]
[354343448,1740435062726,-557.4308118,0.00015534,2]
[354343449,1740435062736,-561.65755464,0.00015542,2]
[354343450,1740435062745,-2318.12198314,0.00015547,2]
[354343451,1740435062755,-829.98,0.00015589,2]
[354343452,1740435062766,-761.0022026,0.00015589,2]
[354343453,1740435062780,-2969.26287251,0.00015589,2]
[354343454,1740435062790,-1214.12351421,0.00015589,2]
[354343455,1740435062801,-666.21436047,0.00015589,2]
[354343456,1740435062813,-2633.24392085,0.00015589,2]
[354343457,1740435062831,-1856.96230868,0.00015589,2]
[354343458,1740435062849,-4267.40642792,0.00015589,2]
[354343459,1740435062868,-674.92,0.00015589,2]
[354343460,1740435062879,-522.92,0.00015589,2]
[354343461,1740435062889,-599.11,0.00015589,2]
[354343462,1740435062899,-719.87,0.00015589,2]
[354343463,1740435062910,-625.45,0.00015589,2]
[354343464,1740435062920,-2857.49323275,0.00015589,2]
[354343465,1740435062930,-561.65755464,0.00015642,2]
[354343466,1740435062941,-156.03043341,0.00015671,2]
[354343467,1740435062951,-500.0,0.00015699,2]
[354343468,1740435062962,-150.29,0.00015699,2]
[354343469,1740435062972,-500.0,0.00015699,2]
[354343470,1740435062981,-150.29,0.00015699,2]
[354343471,1740435062992,-500.0,0.00015699,2]
[354343472,1740435063002,-569.0,0.00015699,2]
[354343473,1740435063012,-500.0,0.00015699,2]
[354343474,1740435063022,-561.65755464,0.00015742,2]
[354343475,1740435063033,-200.756373,0.00015775,2]
[354343476,1740435063043,-561.65755464,0.00015842,2]
[354343477,1740435063054,-156.820376,0.0001587,2]
[354343478,1740435063065,-5000.0,0.000159,7]
[354343479,1740435063075,-561.65755464,0.00015942,2]
[354343480,1740435063086,-1200.0,0.00015952,2]
[354343481,1740435063096,-453.96874124,0.00015968,2]
[354343482,1740435063107,-500.0,0.00015973,2]
[354343483,1740435063122,-168.37626432,0.00015973,2]
[354343484,1740435063132,-500.46879349,0.00015973,2]
[354343485,1740435063142,-248.55,0.00015973,2]
[354343486,1740435063152,-641.65824732,0.00015973,2]
[354343487,1740435063163,-569.0,0.00015973,2]
[354343488,1740435063172,-500.0,0.00015973,2]
[354343489,1740435063183,-1168.87158345,0.00016,2]
[354343490,1740435063193,-5000.0,0.00016,7]
[354343491,1740435063204,-5000.0,0.00016,7]
[354343492,1740435063213,-1444.0234568,0.00016,7]
[354343493,1740435063223,-3000.0,0.00016,2]
[354343494,1740435063234,-3000.0,0.0001601,2]
[354343495,1740435063244,-3000.0,0.0001602,2]
[354343496,1740435063254,-3000.0,0.0001603,2]
[354343497,1740435063264,-3000.0,0.0001604,2]
[354343498,1740435063275,-561.65755464,0.00016042,2]
[354343499,1740435063285,-3000.0,0.0001605,2]
[354343500,1740435063296,-3000.0,0.0001606,2]
[354343501,1740435063306,-3000.0,0.0001607,2]
[354343502,1740435063316,-3000.0,0.0001608,2]
[354343503,1740435063327,-3000.0,0.0001609,2]
[354343504,1740435063337,-3000.0,0.000161,2]
[354343505,1740435063348,-156.820376,0.00016106,4]
[354343506,1740435063359,-3000.0,0.0001611,2]
[354343507,1740435063373,-1434.71636001,0.0001612,2]
[354343508,1740435063383,-3000.0,0.0001612,2]
[354343509,1740435063394,-181782.39841762,0.0001613,5]
[354343510,1740435063534,-22612.0000109,0.0001613,5]
[354343511,1740435063547,-7763.94000018,0.0001613,5]
[354343512,1740435063560,-2549.8,0.0001613,5]
[354343513,1740435063572,-56037.00000002,0.0001613,5]
[354343514,1740435096201,1000.0,0.00011568,2]
[354343515,1740435098013,655.01320344,0.00012938,2]
[354343520,1740435950107,-397.42941783,0.00010959,2]
[354343521,1740435959076,180.680735,9.041e-05,2]
[354343529,1740435989623,-1100.0,0.00010472,2]
[354343531,1740436025092,-143.52058217,0.00010959,2]
[354343532,1740436025114,-414.8270445,0.00011499,2]
[354343533,1740436025140,-808.06884597,0.00011699,2]
[354343534,1740436027199,-1585.78182828,0.00011699,2]
[354343537,1740436036112,-534.69647843,0.00011699,2]
[354343538,1740436050091,-81.81186232,0.00011699,2]
[354343539,1740436050115,-1100.0,0.00011842,2]
[354343540,1740436050140,-300.0,0.00012311,2]
[354343541,1740436050166,-558.91018242,0.00012312,2]
[354343547,1740436119811,1142.58282213,0.00017837,90]
[354343561,1740436145412,-8095.79415094,0.00017,10]
[354343562,1740436145441,-3000.0,0.00017,10]
[354343563,1740436145468,-30000.0,0.000175,10]
[354343564,1740436145495,-29218.03297266,0.000175,10]
[354343565,1740436145523,-30000.0,0.000175,10]
[354343566,1740436145550,-22486.67837581,0.000175,10]
[354343567,1740436145582,-2965.0,0.00017876,60]
[354343568,1740436145609,-5269.05849354,0.00018,30]
[354343569,1740436145638,-2868965.43600705,0.00018,15]
[354343570,1740436147073,-1000.0,0.00011568,2]
[354343571,1740436147095,-290.0,0.00012,2]
[354343572,1740436147116,-300.0,0.00012311,2]
[354343573,1740436147139,-20637.9484,0.00012312,2]
[354343574,1740436151113,-170.10837528,0.00012312,2]
[354343575,1740436151136,-490.67925665,0.00012431,2]
[354343576,1740436151167,-19.77935968,0.00012431,2]
[354343577,1740436151192,-527.5792457,0.00012599,2]
[354343578,1740436153104,-3265.21997707,0.00012599,2]
[354343579,1740436153129,-10577.13302293,0.00012634,2]
[354343580,1740436164091,-9463.62560655,0.00012518,2]
[354343581,1740436166104,-536.37439345,0.00012518,2]
[354343582,1740436166127,-9024.7830432,0.00012634,2]
[354343583,1740436166148,-638.31062935,0.00012838,2]
[354343584,1740436166331,-1000.0,0.00012938,2]
[354343585,1740436166353,-4939.53295115,0.000135,2]
[354343611,1740436232489,-300.0,0.00013499,2]
[354343612,1740436232499,-16644.05145682,0.000135,2]
[354343613,1740436232509,-175.58162759,0.00013598,2]
[354343614,1740436232518,-3000.0,0.00013599,2]
[354343615,1740436232528,-246.99571098,0.00013673,2]
[354343616,1740436232537,-306.03888274,0.00013673,2]
[354343617,1740436232546,-500.0,0.00013698,2]
[354343618,1740436232556,-503.59163747,0.00013698,2]
[354343619,1740436232565,-144.83524905,0.00013698,2]
[354343620,1740436232601,-355.16475095,0.00013698,2]
[354343621,1740436232610,-119.53274905,0.00013698,2]
[354343622,1740436232627,-380.46725095,0.00013698,2]
[354343623,1740436232636,-541.03290781,0.00013698,2]
[354343624,1740436232647,-500.0,0.00013698,2]
[354343625,1740436232656,-164.89384226,0.00013698,2]
[354343626,1740436232667,-586.16433757,0.00013698,2]
[354343627,1740436232677,-500.0,0.00013698,2]